[Event "AIIZIUCWT 2024"]
[Site "Rajkot"]
[Date "2024.01.25"]
[Round "5.4"]
[White "Diya Chowdhury"]
[Black "Abishna Anojan"]
[Result "1-0"]
[ECO "C77"]
[WhiteElo "1881"]
[BlackElo "1391"]
[Annotator "NA RC COMBH"]
[PlyCount "85"]
[EventDate "2024.01.22"]
[EventType "team-tourn"]
[EventCountry "IND"]
[SourceTitle "playchess.com"]
[Source "ChessBase"]
[SourceQuality "1"]
[TimeControl "3600+30"]

1. e4 {[%emt 0:00:09]} e5 {[%emt 0:00:08]} 2. Nf3 {[%emt 0:00:08]} Nc6 {[%emt 0:00:05]} 3. Bb5 {[%emt 0:00:12]} a6 {[%emt 0:00:14]} 4. Ba4 {[%emt 0:00:10]} Nf6 {[%emt 0:00:05]} 5. Qe2 {[%emt 0:00:06]} b5 {[%emt 0:00:15]} 6. Bb3 {[%emt 0:00:09]} Bc5 {[%emt 0:00:17]} 7. c3 {[%emt 0:00:08]} O-O {[%emt 0:00:09]} 8. d3 {[%emt 0:00:11]} h6 {[%emt 0:00:07]} 9. h3 {[%emt 0:00:24]} d5 {[%emt 0:01:22]} 10. Nbd2 {[%emt 0:00:24]} d4 {[%emt 0:02:30]} 11. O-O {[%emt 0:04:33]} a5 {[%emt 0:01:45]} 12. cxd4 {[%emt 0:07:19]} Bxd4 {[%emt 0:01:40]} 13. a4 {[%emt 0:01:36]} b4 {[%emt 0:03:24]} 14. Rd1 {[%emt 0:03:56]} Kh8 {[%emt 0:13:15]} 15. Nf1 {[%emt 0:01:58]} Qd6 {[%emt 0:08:14]} 16. Be3 {[%emt 0:02:35]} Be6 {[%emt 0:02:30]} 17. Qc2 {[%emt 0:04:10]} Bxb3 {[%emt 0:05:41]} 18. Qxb3 {[%emt 0:00:07]} Nd7 {[%emt 0:06:01]} 19. Bxd4 {[%emt 0:14:35]} Nxd4 {[%emt 0:02:24]} 20. Nxd4 {[%emt 0:00:08]} Qxd4 {[%emt 0:02:11]} 21. Rac1 {[%emt 0:00:56]} c5 {[%emt 0:00:43]} 22. Ne3 {[%emt 0:00:14]} g6 {[%emt 0:00:22]} 23. Nd5 {[%emt 0:00:22]} c4 {[%emt 0:00:57]} 24. Rxc4 {[%emt 0:00:31]} Qa7 {[%emt 0:01:45]} 25. Rc7 {[%emt 0:01:40]} Qa6 {[%emt 0:01:36]} 26. Rxd7 {[%emt 0:00:15]} Rac8 {[%emt 0:00:04]} 27. Rc7 {[%emt 0:01:11]} Rxc7 {[%emt 0:00:25]} 28. Nxc7 {[%emt 0:00:07]} Qc6 {[%emt 0:00:09]} 29. Nb5 {[%emt 0:00:26]} Rd8 {[%emt 0:00:35]} 30. Qxf7 {[%emt 0:00:48]} Rd7 {[%emt 0:00:31]} 31. Qb3 {[%emt 0:02:33]} Kg7 {[%emt 0:00:15]} 32. Kh2 {[%emt 0:00:25]} Rf7 {[%emt 0:00:24]} 33. f3 {[%emt 0:00:43]} Qf6 {[%emt 0:00:12]} 34. d4 {[%emt 0:00:41]} exd4 {[%emt 0:03:23]} 35. Nxd4 {[%emt 0:01:00]} h5 {[%emt 0:01:16]} 36. Ne6+ {[%emt 0:01:47]} Kh7 {[%emt 0:01:29]} 37. f4 {[%emt 0:00:25]} Re7 {[%emt 0:00:29]} 38. Ng5+ {[%emt 0:00:10]} Kh6 {[%emt 0:00:14]} 39. g3 {[%emt 0:00:56]} h4 {[%emt 0:00:18]} 40. Rd2 {[%emt 0:00:43]} Rc7 {[%emt 0:01:23]} 41. Qd3 {[%emt 0:05:01]} Qb6 {[%emt 0:03:40]} 42. Qd8 {[%emt 0:01:31]} hxg3+ {[%emt 0:01:45]} 43. Kg2 {[%emt 0:00:05]} 1-0

[Event "AIIZIUCWT 2024"]
[Site "Rajkot"]
[Date "2024.01.25"]
[Round "5.5"]
[White "Krithigga K"]
[Black "Arushi Kotwal"]
[Result "1-0"]
[ECO "A36"]
[WhiteElo "1966"]
[BlackElo "1639"]
[Annotator "TA"]
[PlyCount "103"]
[EventDate "2024.01.22"]
[EventType "team-tourn"]
[EventCountry "IND"]
[SourceTitle "playchess.com"]
[Source "ChessBase"]
[SourceQuality "1"]
[TimeControl "3600+30"]

{[%evp 20,103,-7,-16,-5,-9,42,39,36,25,43,2,26,-52,-62,-54,68,84,64,61,114,122,111,111,205,204,193,118,169,178,175,166,199,204,202,186,195,198,189,178,221,183,187,165,192,201,230,223,221,215,439,435,388,355,434,408,434,462,453,434,439,424,548,505,864,782,1600,1586,1667,1391,5073,4622,29974,29975,29974,29975,29980,29979,29977,29975,29983,29984,29987,29988,29988,29989]} 1. c4 {[%emt 0:00:07]} c5 {[%emt 0:00:11]} 2. g3 {[%emt 0:00:13]} g6 {[%emt 0:00:06]} 3. Bg2 {[%emt 0:00:05]} Bg7 {[%emt 0:00:04]} 4. Nc3 {[%emt 0:00:09]} Nc6 {[%emt 0:00:08]} 5. a3 {[%emt 0:00:39]} e6 {[%emt 0:01:26][%cal Be7e6,Be6d5][%mdl 32]} 6. e3 {[%emt 0:00:39]} Nge7 {[%emt 0:00:24]} 7. Nge2 {[%emt 0:00:36]} O-O {[%emt 0:00:46]} 8. O-O {[%emt 0:00:30]} d5 {[%emt 0:03:13]} 9. cxd5 {[%emt 0:02:03]} exd5 {[%emt 0:00:10]} 10. d4 {[%emt 0:04:51]} cxd4 {[%emt 0:00:26]} 11. Nxd4 {[%emt 0:00:11]} Nxd4 {[%emt 0:01:34]} 12. exd4 {[%emt 0:00:05]} Qb6 {[%emt 0:08:42]} (12... Be6 $11) 13. Bg5 $14 {[%emt 0:07:07]} Nc6 {[%emt 0:04:16] White is slightly better.} 14. Nxd5 {[%emt 0:02:13]} Qxd4 {[%emt 0:01:14]} 15. Nc7 {[%emt 0:03:29]} (15. Qxd4 {simplifies} Bxd4 16. Rfe1 Bf5 17. Re2) 15... Rb8 {[%emt 0:06:28]} 16. Bxc6 {[%emt 0:14:49]} ({White should play} 16. Qxd4 $11 Bxd4 17. Ra2) 16... bxc6 $15 {[%emt 0:11:59]} 17. Be7 $1 {[%emt 0:12:37] [#]} Qb6 {[%emt 0:20:50]} 18. Bxf8 $14 {[%emt 0:02:34]} Bxf8 {[%emt 0:00:13] This pair of bishops is nice.} 19. Ne8 {[%emt 0:01:17]} Bh3 {[%emt 0:04:02]} (19... c5 $14 20. Qf3 Bb7 21. Nf6+ Kg7) 20. Nf6+ $16 {[%emt 0:03:39]} Kg7 {[%emt 0:01:08]} 21. Nd7 {[%emt 0:00:35]} Qxb2 {[%emt 0:03:04]} (21... Bxd7 $16 {was called for.} 22. Qxd7 Rd8) 22. Nxb8 $18 {[%emt 0:01:35]} Bxf1 {[%emt 0:00:30]} 23. Nxc6 {[%emt 0:03:50]} (23. Rb1 $18 Be2 24. Qe1 (24. Rxb2 Bxd1 25. Nxc6 Bxa3 $16)) 23... Bh3 {[%emt 0:00:34]} (23... Bd3 $16) 24. Qd4+ {[%emt 0:00:35]} (24. Nxa7 {gets mated.} Bc5 (24... Bxa3 25. Rb1 $16) 25. Kh1 Qxf2 (25... Bxa7 26. Rb1 Qxf2 27. Qd5 h5 28. Qe5+ Kh7 29. Qd5 Bf1 30. Rb6 Bxb6 31. Qxf7+ Qxf7 32. h4 Qf3+ 33. Kh2 Qg2#) 26. Qd5 Bg4 (26... Bxa7 $2 27. Qe5+ Kf8 28. Qh8+ Ke7 29. Qa8 $19) 27. h3 Bf3+ (27... Bxh3 $2 28. Nc6 $19) (27... Bxh3 $2 28. Nc6 $19)) 24... Qxd4 {[%emt 0:00:05]} 25. Nxd4 {[%emt 0:00:04][%cal Bc6d4,Bd4b5,Bb5c7][%mdl 4128] Endgame. KRN-KB} Bc5 {[%emt 0:00:08]} 26. Nb5 {[%emt 0:01:02]} Bd7 {[%emt 0:00:21]} 27. a4 {[%emt 0:00:38]} a6 {[%emt 0:00:27][%cal Ba7a6,Ba6a5][%mdl 32]} 28. Nc7 {[%emt 0:00:20]} a5 {[%emt 0:00:14]} 29. Nb5 {[%emt 0:01:03]} Be6 {[%emt 0:00:19]} 30. Kf1 {[%emt 0:01:57]} Bc4+ {[%emt 0:00:42]} 31. Ke1 {[%emt 0:00:17]} Bb4+ {[%emt 0:00:23]} 32. Kd1 {[%emt 0:00:24]} Kf6 {[%emt 0:00:18]} 33. Kc2 {[%emt 0:00:25]} Ke5 {[%emt 0:00:37]} 34. Rd1 {[%emt 0:00:47]} Bc5 $2 {[%emt 0:00:50]} (34... Be6 {was worth a try.} 35. f3 h5) 35. f4+ {[%emt 0:00:31]} Ke6 {[%emt 0:00:39]} 36. Nd4+ {[%emt 0:01:18]} Kf6 {[%emt 0:00:48]} 37. Nc6 {[%emt 0:00:27]} Bb6 {[%emt 0:00:52]} 38. Ne5 {[%emt 0:01:16]} Be6 {[%emt 0:00:40]} 39. Nd7+ {[%emt 0:00:40]} Bxd7 {[%emt 0:00:06]} 40. Rxd7 {[%emt 0:00:11] KR-KB} Bc5 {[%emt 0:00:32] Prevents Rd6+} 41. Kb3 {[%emt 0:00:27]} Bb4 {[%emt 0:01:00]} (41... Bg1 $142 42. h3 Ke6) 42. Kc4 {[%emt 0:00:45]} h5 {[%emt 0:00:13]} 43. Kb5 {[%emt 0:00:41]} Ke6 {[%emt 0:00:19]} 44. Ra7 {[%emt 0:00:28]} Kd5 {[%emt 0:00:39]} 45. Rxf7 {[%emt 0:00:13]} Ke4 {[%emt 0:00:19]} 46. Rf6 {[%emt 0:00:13] White mates.} Kf3 {[%emt 0:00:18]} 47. Rxg6 {[%emt 0:00:30]} Kg2 {[%emt 0:00:07]} 48. h4 {[%emt 0:00:15]} Kf3 {[%emt 0:00:10]} 49. Rg5 {[%emt 0:00:11]} Be1 {[%emt 0:00:16]} 50. f5 {[%emt 0:00:18][%cal Bf4f5,Bf5f6][%mdl 32]} Bxg3 {[%emt 0:00:26] [#]} 51. Rxg3+ $1 {[%emt 0:00:08]} Kxg3 {[%emt 0:00:05]} 52. f6 {[%emt 0:00:03] Weighted Error Value: White=0.16 (very precise) /Black=0.50.  Mistake:       	White=2     	Black=7      Inaccurate:     	White=1     	Black=1      OK:         	White=10    	Black=6      Best:        	White=5     	Black=4      Strong:       	White=1     	---} 1-0

[Event "AIIZIUCWT 2024"]
[Site "Rajkot"]
[Date "2024.01.25"]
[Round "5.6"]
[White "Salonika, Saina"]
[Black "Sunyuktha C M N"]
[Result "1/2-1/2"]
[ECO "B23"]
[WhiteElo "2113"]
[BlackElo "2013"]
[Annotator "RC"]
[PlyCount "134"]
[EventDate "2024.01.22"]
[EventType "team-tourn"]
[EventCountry "IND"]
[SourceTitle "playchess.com"]
[Source "ChessBase"]
[SourceQuality "1"]
[TimeControl "3600+30"]

1. e4 {[%emt 0:00:03]} c5 {[%emt 0:00:14]} 2. Nc3 {[%emt 0:00:09]} a6 {[%emt 0:01:52]} 3. g3 {[%emt 0:00:17]} b5 {[%emt 0:00:32]} 4. Bg2 {[%emt 0:00:04]} Bb7 {[%emt 0:00:04]} 5. d3 {[%emt 0:00:10]} d6 {[%emt 0:03:01]} 6. Nh3 {[%emt 0:02:12]} g6 {[%emt 0:07:33]} 7. O-O {[%emt 0:00:32]} Bg7 {[%emt 0:00:03]} 8. f4 {[%emt 0:01:16]} Nc6 {[%emt 0:00:28]} 9. Ne2 {[%emt 0:01:21]} Qb6 {[%emt 0:18:11]} 10. c3 {[%emt 0:01:57]} Nf6 {[%emt 0:00:11]} 11. Nf2 {[%emt 0:01:18]} h5 {[%emt 0:04:21]} 12. h3 {[%emt 0:02:18]} Nd7 {[%emt 0:05:14]} 13. Be3 {[%emt 0:04:15]} Rc8 {[%emt 0:11:32]} 14. b4 {[%emt 0:05:22]} Qd8 {[%emt 0:01:30]} 15. bxc5 {[%emt 0:09:51]} Nxc5 {[%emt 0:00:53]} 16. Rb1 {[%emt 0:02:02]} Na5 {[%emt 0:03:18]} 17. Bd2 {[%emt 0:12:09]} Ba8 {[%emt 0:03:37]} 18. Qe1 {[%emt 0:03:10]} Nc6 {[%emt 0:02:35]} 19. c4 {[%emt 0:03:38]} bxc4 {[%emt 0:01:29]} 20. Bc3 {[%emt 0:01:12]} Bxc3 {[%emt 0:01:49]} 21. Qxc3 {[%emt 0:00:05]} O-O {[%emt 0:00:43]} 22. d4 {[%emt 0:03:04]} Nd7 {[%emt 0:01:39]} 23. Qxc4 {[%emt 0:00:13]} Qa5 {[%emt 0:00:22]} 24. a4 {[%emt 0:04:44]} Nb6 {[%emt 0:00:37]} 25. Qa2 {[%emt 0:00:11]} Qxa4 {[%emt 0:00:33]} 26. Qxa4 {[%emt 0:00:11]} Nxa4 {[%emt 0:00:05]} 27. Ra1 {[%emt 0:00:04]} Nb2 {[%emt 0:00:40]} 28. Rxa6 {[%emt 0:02:09]} Nc4 {[%emt 0:00:19]} 29. d5 {[%emt 0:01:21]} Nb4 {[%emt 0:00:21]} 30. Ra7 {[%emt 0:03:52]} Rfe8 {[%emt 0:00:47]} 31. Rc1 {[%emt 0:00:37]} Ne3 {[%emt 0:00:48]} 32. Rxc8 {[%emt 0:00:39]} Rxc8 {[%emt 0:00:01]} 33. Rxe7 {[%emt 0:00:05]} Rc2 {[%emt 0:00:51]} 34. Re8+ {[%emt 0:02:46]} Kg7 {[%emt 0:00:03]} 35. Rxa8 {[%emt 0:00:03]} Rxe2 {[%emt 0:00:14]} 36. Ra1 {[%emt 0:00:20]} Nxg2 {[%emt 0:01:11]} 37. Kxg2 {[%emt 0:00:06]} Nd3 {[%emt 0:01:19]} 38. Kf3 {[%emt 0:03:02]} Rxf2+ {[%emt 0:00:00]} 39. Ke3 {[%emt 0:00:03]} Rh2 {[%emt 0:00:24]} 40. Kxd3 {[%emt 0:00:08]} Rxh3 {[%emt 0:00:01]} 41. e5 {[%emt 0:00:48]} Rxg3+ {[%emt 0:00:05]} 42. Ke4 {[%emt 0:00:05]} Kf8 {[%emt 0:01:21]} 43. Ra8+ {[%emt 0:01:09]} Ke7 {[%emt 0:00:03]} 44. Ra7+ {[%emt 0:00:16]} Ke8 {[%emt 0:00:08]} 45. exd6 {[%emt 0:00:59]} h4 {[%emt 0:00:23]} 46. Re7+ {[%emt 0:01:25]} Kf8 {[%emt 0:01:05]} 47. Ke5 {[%emt 0:00:07]} Rd3 {[%emt 0:00:57]} 48. Ra7 {[%emt 0:01:05]} Ke8 {[%emt 0:00:18]} 49. Ra8+ {[%emt 0:00:26]} Kd7 {[%emt 0:00:03]} 50. Ra7+ {[%emt 0:00:10]} Ke8 {[%emt 0:00:07]} 51. Ra8+ {[%emt 0:01:01]} Kd7 {[%emt 0:00:02]} 52. Ra7+ {[%emt 0:00:25]} Ke8 {[%emt 0:00:02]} 53. d7+ {[%emt 0:00:19]} Ke7 {[%emt 0:00:25]} 54. d8=Q+ {[%emt 0:02:16]} Kxd8 {[%emt 0:00:01]} 55. Kd6 {[%emt 0:00:00]} Kc8 {[%emt 0:01:33]} 56. Rxf7 {[%emt 0:00:00]} h3 {[%emt 0:00:12]} 57. Rf8+ {[%emt 0:00:00]} Kb7 {[%emt 0:00:03]} 58. Rh8 {[%emt 0:00:00]} Rf3 {[%emt 0:00:52]} 59. Rh4 {[%emt 0:00:00]} Kc8 {[%emt 0:00:39]} 60. Ke5 {[%emt 0:00:03]} Kd7 {[%emt 0:00:26]} 61. Rh6 {[%emt 0:01:29]} Re3+ {[%emt 0:01:03]} 62. Kf6 {[%emt 0:01:20]} Rf3 {[%emt 0:01:13]} 63. Kxg6 {[%emt 0:00:41]} Rxf4 {[%emt 0:00:12]} 64. Rxh3 {[%emt 0:00:02]} Kd6 {[%emt 0:00:03]} 65. Rh5 {[%emt 0:00:06]} Rf1 {[%emt 0:00:07]} 66. Rf5 {[%emt 0:00:05]} Rxf5 {[%emt 0:00:02]} 67. Kxf5 {[%emt 0:00:04]} Kxd5 {[%emt 0:03:10]} 1/2-1/2

[Event "AIIZIUCWT 2024"]
[Site "Rajkot"]
[Date "2024.01.25"]
[Round "5.7"]
[White "Poorna Sri M.K"]
[Black "Tanishka Kotia"]
[Result "0-1"]
[ECO "B01"]
[WhiteElo "1812"]
[BlackElo "1787"]
[Annotator "NA RC COMBH"]
[PlyCount "80"]
[EventDate "2024.01.22"]
[EventType "team-tourn"]
[EventCountry "IND"]
[SourceTitle "playchess.com"]
[Source "ChessBase"]
[SourceQuality "1"]
[TimeControl "3600+30"]

1. e4 {[%emt 0:00:07]} d5 {[%emt 0:00:08]} 2. exd5 {[%emt 0:00:06]} Nf6 {[%emt 0:00:06]} 3. Nf3 {[%emt 0:00:23]} Nxd5 {[%emt 0:00:10]} 4. d4 {[%emt 0:00:18]} Bg4 {[%emt 0:00:17]} 5. c4 {[%emt 0:00:52]} Nb6 {[%emt 0:01:23]} 6. c5 {[%emt 0:00:17]} Nd5 {[%emt 0:08:16]} 7. Qb3 {[%emt 0:02:53]} Bc8 {[%emt 0:19:51]} 8. Bg5 {[%emt 0:08:36]} f6 {[%emt 0:11:45]} 9. Bc4 {[%emt 0:03:54]} e6 {[%emt 0:01:38]} 10. Bh4 {[%emt 0:02:35]} g5 {[%emt 0:06:04]} 11. Bg3 {[%emt 0:00:57]} g4 {[%emt 0:00:25]} 12. Nfd2 {[%emt 0:02:48]} Nc6 {[%emt 0:00:01]} 13. Bb5 {[%emt 0:06:17]} Bd7 {[%emt 0:00:28]} 14. Bxc6 {[%emt 0:01:08]} Bxc6 {[%emt 0:00:33]} 15. O-O {[%emt 0:02:01]} h5 {[%emt 0:00:43]} 16. Re1 {[%emt 0:16:46]} h4 {[%emt 0:01:31]} 17. Rxe6+ {[%emt 0:01:21]} Kd7 {[%emt 0:04:24]} 18. Re1 {[%emt 0:02:11]} hxg3 {[%emt 0:00:02]} 19. Qxg3 {[%emt 0:00:15]} f5 {[%emt 0:01:19]} 20. Nc3 {[%emt 0:00:43]} Bg7 {[%emt 0:02:01]} 21. Nxd5 {[%emt 0:04:03]} Bxd5 {[%emt 0:00:01]} 22. Qf4 {[%emt 0:00:23]} Qf8 {[%emt 0:01:16]} 23. Nb3 {[%emt 0:02:53]} c6 {[%emt 0:03:52]} 24. Na5 {[%emt 0:01:11]} Bh6 {[%emt 0:00:49]} 25. Qg3 {[%emt 0:03:38]} Bd2 {[%emt 0:00:15]} 26. Nxb7 {[%emt 0:00:08]} Bxe1 {[%emt 0:00:14]} 27. Rxe1 {[%emt 0:00:10]} Re8 {[%emt 0:01:35]} 28. Rd1 {[%emt 0:00:19]} Rh6 {[%emt 0:01:02]} 29. Qa3 {[%emt 0:02:45]} Qe7 {[%emt 0:01:42]} 30. Rf1 {[%emt 0:04:24]} Qe4 {[%emt 0:01:22]} 31. Qg3 {[%emt 0:00:31]} Ree6 {[%emt 0:01:12]} 32. Nd6 {[%emt 0:01:03]} Rxd6 {[%emt 0:00:15]} 33. cxd6 {[%emt 0:00:04]} Rxd6 {[%emt 0:00:02]} 34. f3 {[%emt 0:00:55]} Qxd4+ {[%emt 0:00:38]} 35. Kh1 {[%emt 0:00:03]} gxf3 {[%emt 0:00:33]} 36. gxf3 {[%emt 0:00:07]} c5 {[%emt 0:00:30]} 37. Qh3 {[%emt 0:00:46]} Qd3 {[%emt 0:00:18]} 38. Rf2 {[%emt 0:01:01]} Re6 {[%emt 0:00:18]} 39. Qh7+ {[%emt 0:00:26]} Re7 {[%emt 0:00:17]} 40. Qg6 {[%emt 0:00:03] Check Result:-#2} Bxf3+ {[%emt 0:00:17]} 0-1

[Event "AIIZIUCWT 2024"]
[Site "Rajkot"]
[Date "2024.01.25"]
[Round "5.8"]
[White "Poornima Gupta"]
[Black "Mohana Praba R B"]
[Result "0-1"]
[ECO "D02"]
[WhiteElo "1460"]
[BlackElo "1478"]
[Annotator "NA RC COMBH"]
[PlyCount "150"]
[EventDate "2024.01.22"]
[EventType "team-tourn"]
[EventCountry "IND"]
[SourceTitle "playchess.com"]
[Source "ChessBase"]
[SourceQuality "1"]
[TimeControl "3600+30"]

1. d4 {[%emt 0:00:05]} d5 {[%emt 0:00:45]} 2. Bf4 {[%emt 0:00:07]} e6 {[%emt 0:00:21]} 3. e3 {[%emt 0:00:05]} Bd6 {[%emt 0:00:40]} 4. Nf3 {[%emt 0:00:19]} Nf6 {[%emt 0:00:51]} 5. c3 {[%emt 0:00:29]} h6 {[%emt 0:01:56]} 6. Nbd2 {[%emt 0:00:23]} O-O {[%emt 0:02:52]} 7. Bd3 {[%emt 0:00:18]} c5 {[%emt 0:02:09]} 8. Bxd6 {[%emt 0:03:29]} Qxd6 {[%emt 0:00:10]} 9. Ne5 {[%emt 0:00:16]} Nc6 {[%emt 0:07:42]} 10. f4 {[%emt 0:00:18]} Rb8 {[%emt 0:08:08]} 11. a4 {[%emt 0:07:08]} c4 {[%emt 0:01:56]} 12. Bb1 {[%emt 0:00:12]} b5 {[%emt 0:01:06]} 13. Qc2 {[%emt 0:02:35]} b4 {[%emt 0:02:31]} 14. Ng4 {[%emt 0:00:37]} Ne4 {[%emt 0:00:40]} 15. Nxe4 {[%emt 0:02:10]} dxe4 {[%emt 0:00:08]} 16. Ne5 {[%emt 0:00:55]} f5 {[%emt 0:02:19]} 17. Nxc4 {[%emt 0:01:43]} Qe7 {[%emt 0:01:06]} 18. Ne5 {[%emt 0:02:59]} Nxe5 {[%emt 0:00:32]} 19. fxe5 {[%emt 0:00:27]} Qg5 {[%emt 0:04:34]} 20. Qd2 {[%emt 0:05:52]} b3 {[%emt 0:04:52]} 21. O-O {[%emt 0:01:05]} Ba6 {[%emt 0:00:19]} 22. Rf4 {[%emt 0:00:27]} Bc4 {[%emt 0:00:17]} 23. Qf2 {[%emt 0:00:42]} a5 {[%emt 0:00:26]} 24. h4 {[%emt 0:03:42]} Qe7 {[%emt 0:01:34]} 25. Qg3 {[%emt 0:03:50]} Kh8 {[%emt 0:02:51]} 26. Qg6 {[%emt 0:01:02]} Qe8 {[%emt 0:04:07]} 27. h5 {[%emt 0:01:18]} Qxg6 {[%emt 0:03:05]} 28. hxg6 {[%emt 0:00:07]} Kg8 {[%emt 0:00:57]} 29. Kf2 {[%emt 0:01:45]} Bd5 {[%emt 0:01:29]} 30. Kg3 {[%emt 0:01:08]} Bc4 {[%emt 0:01:56]} 31. Rf2 {[%emt 0:03:45]} Bd5 {[%emt 0:01:59]} 32. Kh4 {[%emt 0:05:54]} Rbc8 {[%emt 0:00:59]} 33. Rf4 {[%emt 0:01:40]} Rc7 {[%emt 0:03:23]} 34. g4 {[%emt 0:01:57]} Rcc8 {[%emt 0:02:59]} 35. g5 {[%emt 0:01:01]} Rc4 {[%emt 0:01:32]} 36. Kh5 {[%emt 0:00:52]} hxg5 {[%emt 0:01:00]} 37. Kxg5 {[%emt 0:00:28]} Rfc8 {[%emt 0:00:52]} 38. Rh4 {[%emt 0:01:10]} Kf8 {[%emt 0:00:49]} 39. Rh7 {[%emt 0:00:23]} R4c7 {[%emt 0:00:18]} 40. Ra3 {[%emt 0:02:29]} Ke8 {[%emt 0:00:59]} 41. Ra1 {[%emt 0:12:06]} Re7 {[%emt 0:00:23]} 42. Kf4 {[%emt 0:00:32]} Kd7 {[%emt 0:00:20]} 43. Rh1 {[%emt 0:00:46]} Kc7 {[%emt 0:01:21]} 44. Ra3 {[%emt 0:00:35]} Kb6 {[%emt 0:00:23]} 45. Kg5 {[%emt 0:00:59]} Ree8 {[%emt 0:00:47]} 46. Rh7 {[%emt 0:00:16]} Rc7 {[%emt 0:00:43]} 47. Rh4 {[%emt 0:00:37]} Ka6 {[%emt 0:00:33]} 48. Rh1 {[%emt 0:00:20]} Rb8 {[%emt 0:00:17]} 49. Rh2 {[%emt 0:01:11]} Rbb7 {[%emt 0:00:16]} 50. Rh8 {[%emt 0:00:17]} Ka7 {[%emt 0:00:31]} 51. Rd8 {[%emt 0:00:30]} Rd7 {[%emt 0:00:16]} 52. Rc8 {[%emt 0:00:17]} Rbc7 {[%emt 0:00:15]} 53. Rf8 {[%emt 0:00:39]} Kb7 {[%emt 0:00:33]} 54. Ra1 {[%emt 0:00:28]} Bc4 {[%emt 0:00:53]} 55. Ra3 {[%emt 0:01:23]} Rc8 {[%emt 0:00:49]} 56. Rf7 {[%emt 0:00:48]} Kc6 {[%emt 0:00:16]} 57. Ra1 {[%emt 0:00:19]} Rh8 {[%emt 0:00:12]} 58. Bxe4+ {[%emt 0:00:43]} fxe4 {[%emt 0:00:08]} 59. Rg1 {[%emt 0:00:26]} Rh2 {[%emt 0:01:07]} 60. Rf4 {[%emt 0:01:20]} Rxb2 {[%emt 0:00:46]} 61. Rxe4 {[%emt 0:00:27]} Rc2 {[%emt 0:00:41]} 62. Rf4 {[%emt 0:00:27]} Rxc3 {[%emt 0:00:33]} 63. Rg2 {[%emt 0:00:19]} Rxe3 {[%emt 0:00:10]} 64. Rd2 {[%emt 0:00:29]} Rc3 {[%emt 0:00:32]} 65. Rf8 {[%emt 0:00:17]} Kc7 {[%emt 0:01:23]} 66. Ra8 {[%emt 0:00:24]} Rc2 {[%emt 0:00:18]} 67. Rd1 {[%emt 0:00:15]} Rg2+ {[%emt 0:00:48]} 68. Kf4 {[%emt 0:00:19]} Rxg6 {[%emt 0:00:37]} 69. Rxa5 {[%emt 0:00:23]} Rf7+ {[%emt 0:00:42]} 70. Ke3 {[%emt 0:00:21]} Rg3+ {[%emt 0:00:13]} 71. Kd2 {[%emt 0:00:20]} Rd3+ {[%emt 0:00:35]} 72. Kc1 {[%emt 0:01:22]} Rxd1+ {[%emt 0:00:04]} 73. Kxd1 {[%emt 0:00:04]} Kb6 {[%emt 0:00:06]} 74. Rc5 {[%emt 0:00:07]} Bd5 {[%emt 0:00:05]} 75. Kc1 {[%emt 0:00:54]} Rc7 {[%emt 0:00:16]} 0-1